bitfinex/quotes_BTCUSD_20241028
["timestamp","ask_amount","ask_price","bid_price","bid_amount"]
[1730123865170,0.289943,68979.0,68969.0,0.25407516]
[1730123865407,0.144976,68977.0,68974.0,0.21652677]
[1730123865656,0.15050381,68976.0,68969.0,0.289985]
[1730123865900,0.15050381,68976.0,68967.0,0.50651977]
[1730123865901,0.14498,68975.0,68970.0,0.144989]
[1730123866126,0.15080381,68974.0,68959.0,0.25907516]
[1730123866354,0.15080381,68974.0,68967.0,0.21652677]
[1730123866355,0.0003,68972.0,68967.0,0.21652677]
[1730123866594,0.0003,68979.0,68969.0,0.25407516]
[1730123866813,0.36733058,68978.0,68970.0,0.00289942]
[1730123867025,0.36733058,68978.0,68969.0,0.25407516]
[1730123867026,0.15080381,68978.0,68969.0,0.25407516]
[1730123867254,0.15080381,68978.0,68974.0,0.144981]
[1730123867495,0.15080381,68978.0,68971.0,0.289976]
[1730123867496,0.15050381,68978.0,68977.0,0.144975]
[1730123867734,0.001,68979.0,68978.0,0.144973]
[1730123868014,5e-05,68980.0,68974.0,0.25407516]
[1730123868244,0.14555381,68980.0,68979.0,0.144971]
[1730123871445,0.001648,68980.0,68979.0,0.144971]
[1730123871858,0.001648,68980.0,68979.0,0.14787001]
[1730123872072,0.001648,68980.0,68979.0,0.15287001]
[1730123872304,0.002648,68980.0,68979.0,0.17156985]
[1730123872713,0.002648,68980.0,68979.0,0.17356985]
[1730123872909,0.002648,68980.0,68979.0,0.170671]
[1730123873112,0.007648,68980.0,68979.0,0.170671]
[1730123873328,0.006648,68980.0,68979.0,0.159671]
[1730123873753,0.001648,68980.0,68979.0,0.159671]
[1730123874005,0.002648,68980.0,68979.0,0.165671]
[1730123874742,0.003648,68980.0,68979.0,0.175671]
[1730123874948,0.002648,68980.0,68979.0,0.165671]
[1730123875151,0.002648,68980.0,68979.0,0.1685698]
[1730123875346,0.003648,68980.0,68979.0,0.174671]
[1730123876744,0.001648,68993.0,68992.0,0.149944]
[1730123876987,0.001648,68993.0,68992.0,0.1528424]
[1730123877653,0.001648,68993.0,68992.0,0.149944]
[1730123877899,0.001648,68993.0,68992.0,0.15284223]
[1730123878133,0.001648,68993.0,68992.0,0.16254223]
[1730123878134,0.005648,68993.0,68992.0,0.16254223]
[1730123878601,0.005648,68993.0,68992.0,0.159644]
[1730123878817,0.005648,68993.0,68992.0,0.49591737]
[1730123879054,0.005648,68993.0,68992.0,0.49301916]
[1730123879345,0.011648,68993.0,68992.0,0.49201916]
[1730123879578,0.001648,68993.0,68992.0,0.236944]
[1730123879809,0.002648,68993.0,68992.0,0.247944]
[1730123880024,0.003648,68993.0,68992.0,0.261944]
[1730123880240,0.003648,68993.0,68992.0,0.47847077]
[1730123880449,0.002648,68993.0,68992.0,0.247944]
[1730123880680,0.002648,68993.0,68992.0,0.238244]
[1730123880891,0.003648,68993.0,68992.0,0.169944]
[1730123881127,0.003648,68993.0,68992.0,0.014]
[1730123881128,0.002648,68993.0,68992.0,0.014]
[1730123881341,0.15315181,68993.0,68992.0,0.028]
[1730123881571,0.29909381,68993.0,68992.0,0.028]
[1730123881799,0.29809381,68993.0,68992.0,0.014]
[1730123882255,0.15415181,68993.0,68992.0,0.169944]
[1730123882479,0.15315181,68993.0,68992.0,0.158944]
[1730123882718,0.15215181,68993.0,68990.0,0.144947]
[1730123882947,0.005648,68993.0,68992.0,0.008]
[1730123883407,0.30109381,68993.0,68992.0,0.008]
[1730123883606,0.30109381,68993.0,68978.0,0.25407516]
[1730123883607,0.144951,68989.0,68984.0,0.14496]
[1730123883820,0.15050381,68988.0,68982.0,0.289928]
[1730123884021,0.15050381,68988.0,68986.0,0.144956]
[1730123884445,0.15050381,68988.0,68984.0,0.14496]
[1730123884668,0.15050381,68988.0,68985.0,0.144957]
[1730123885322,0.15050381,68988.0,68983.0,0.289922]
[1730123885323,0.15050381,68988.0,68983.0,0.005]
[1730123885527,0.15050381,68988.0,68977.0,0.289947]
[1730123885772,0.144961,68984.0,68976.0,0.289955]
[1730123886007,0.15050381,68983.0,68975.0,0.21652677]
[1730123886422,0.01344941,68982.0,68981.0,0.144967]
[1730123886653,0.0003,68985.0,68981.0,0.25407516]
[1730123886899,0.0003,68985.0,68984.0,0.144961]
[1730123887529,0.01376415,68985.0,68984.0,0.144961]
[1730123887947,0.01776415,68985.0,68984.0,0.144961]
[1730123888183,0.02076415,68985.0,68984.0,0.144961]
[1730123888411,0.02076415,68985.0,68971.0,0.0097]
[1730123888412,0.144966,68982.0,68971.0,0.25877516]
[1730123888627,0.18555059,68981.0,68980.0,0.144969]
[1730123888864,0.18555059,68981.0,68978.0,0.434919]
[1730123889073,0.03504678,68980.0,68979.0,0.144971]
[1730123889311,0.18555059,68980.0,68979.0,0.144971]
[1730123889519,0.18555059,68980.0,68967.0,0.289989]
[1730123889733,0.18555059,68979.0,68974.0,0.21652677]
[1730123889956,0.144983,68974.0,68966.0,0.05535248]
[1730123890165,0.18555059,68973.0,68970.0,0.144989]
[1730123890396,0.03504678,68972.0,68967.0,0.289993]
[1730123890613,0.03504678,68972.0,68966.0,0.0047]
[1730123890614,0.18555059,68971.0,68970.0,0.14499]
[1730123891775,0.18555059,68971.0,68967.0,0.144995]
[1730123892018,0.18555059,68971.0,68970.0,0.011]
[1730123892019,0.418388,68971.0,68970.0,0.011]
[1730123892264,0.14503,68951.0,68950.0,0.000824]
[1730123892523,0.18042147,68951.0,68950.0,0.000824]
[1730123892759,0.45492147,68951.0,68950.0,0.000824]
[1730123893011,0.49950021,68951.0,68950.0,0.000824]
[1730123893491,0.52222962,68951.0,68950.0,0.000824]
[1730123893742,0.52222962,68951.0,68950.0,0.002824]
[1730123893967,0.77630478,68951.0,68950.0,0.00182354]
[1730123894457,0.75472604,68951.0,68950.0,0.00182354]
[1730123894709,0.2553,68942.0,68941.0,0.21652677]
[1730123894947,0.43044047,68942.0,68941.0,0.21652677]
[1730123895176,0.43044047,68942.0,68915.0,0.299909]
[1730123895177,0.145378,68928.0,68919.0,0.23462497]
[1730123895408,0.33097328,68928.0,68919.0,0.23462497]
[1730123895614,0.35335101,68928.0,68919.0,0.23462497]
[1730123895850,0.35335101,68928.0,68927.0,0.000825]
[1730123896483,0.33097328,68928.0,68927.0,0.000825]
[1730123896661,0.33074271,68928.0,68927.0,0.000825]
[1730123897079,0.33374271,68928.0,68927.0,0.000825]
[1730123897512,0.33373596,68928.0,68927.0,0.000825]
[1730123899494,0.34573596,68928.0,68927.0,0.001825]
[1730123899722,0.34273596,68928.0,68927.0,0.001825]
[1730123900155,0.35073596,68928.0,68927.0,0.002825]
[1730123902838,0.37330089,68928.0,68927.0,0.002825]
[1730123903051,0.35056589,68928.0,68927.0,0.002825]
[1730123903520,0.20548789,68928.0,68927.0,0.002825]
[1730123903747,0.18384384,68928.0,68927.0,0.002825]
[1730123904247,0.35026167,68928.0,68927.0,0.002825]
[1730123904482,0.59663289,68928.0,68927.0,0.001825]
[1730123904725,0.57895697,68928.0,68927.0,0.001825]
[1730123904969,0.63662516,68928.0,68927.0,0.001825]
[1730123905185,0.88860867,68928.0,68927.0,0.001825]
[1730123905416,0.88860867,68928.0,68919.0,0.0180982]
[1730123905417,0.435395,68920.0,68919.0,0.0180982]
[1730123905650,0.618567,68920.0,68919.0,0.0180982]
[1730123905873,0.87464216,68920.0,68919.0,0.0180982]
[1730123906593,1.09469016,68920.0,68919.0,0.0180982]
[1730123907277,0.609567,68920.0,68919.0,0.0180982]
[1730123907514,0.344567,68920.0,68919.0,0.0180982]
[1730123907740,0.32323273,68920.0,68919.0,0.0180982]
[1730123907975,0.32323273,68920.0,68919.0,0.0190982]
[1730123907976,0.33723273,68920.0,68919.0,0.0190982]
[1730123908219,0.58723273,68920.0,68919.0,0.0190982]
[1730123908467,0.58056486,68920.0,68919.0,0.0180982]
[1730123908932,0.59456486,68920.0,68919.0,0.0180982]
[1730123909155,0.60330243,68920.0,68919.0,0.0180982]
[1730123909598,0.61730243,68920.0,68919.0,0.0180982]
[1730123910523,0.63130243,68920.0,68919.0,0.0180982]
[1730123910980,0.59456486,68920.0,68919.0,0.0180982]
[1730123911202,0.60856486,68920.0,68919.0,0.0180982]
[1730123913228,0.81962801,68920.0,68919.0,0.0180982]
[1730123913430,0.99372301,68920.0,68919.0,0.0180982]
[1730123913642,0.400412,68912.0,68911.0,0.000821]
[1730123913873,0.90353635,68912.0,68911.0,0.000821]
[1730123914128,0.36646119,68912.0,68911.0,0.000821]
[1730123914356,0.36146119,68912.0,68911.0,0.000821]
[1730123914587,0.62053635,68912.0,68911.0,0.000821]
[1730123915234,0.65927817,68912.0,68911.0,0.000821]
[1730123915456,0.65227817,68912.0,68911.0,0.000821]
[1730123915666,0.65735087,68912.0,68911.0,0.000821]
[1730123915925,0.63460905,68912.0,68911.0,0.000821]
[1730123916156,0.63053389,68912.0,68911.0,0.000821]
[1730123916368,0.62553389,68912.0,68911.0,0.000821]
[1730123916598,0.39953389,68912.0,68911.0,0.001821]
[1730123916867,0.39453389,68912.0,68911.0,0.001821]
[1730123917075,0.19218264,68912.0,68911.0,0.001821]
[1730123917515,0.35874134,68912.0,68911.0,0.001821]
[1730123917755,0.17818264,68912.0,68911.0,0.000821]
[1730123917965,0.16418264,68912.0,68911.0,0.000821]
[1730123918213,0.32329464,68912.0,68911.0,0.001821]
[1730123918642,0.69166821,68912.0,68911.0,0.001821]
[1730123918871,0.5773698,68912.0,68911.0,0.001821]
[1730123919084,0.5913698,68912.0,68911.0,0.001821]
[1730123919351,0.57799097,68912.0,68911.0,0.001821]
[1730123919560,0.59343094,68912.0,68911.0,0.001821]
[1730123919808,0.59343094,68912.0,68911.0,0.000821]
[1730123919809,0.69831811,68912.0,68911.0,0.000821]
[1730123920033,0.68931811,68912.0,68911.0,0.000821]
[1730123920244,0.56843262,68912.0,68911.0,0.000821]
[1730123920457,0.61543262,68912.0,68911.0,0.001821]
[1730123920701,0.6208694,68912.0,68911.0,0.001821]
[1730123920908,0.8639694,68912.0,68911.0,0.000821]
[1730123921148,1.01060874,68912.0,68911.0,0.000821]
[1730123921371,1.06666578,68912.0,68911.0,0.001821]
[1730123921582,1.03860874,68912.0,68911.0,0.001821]
[1730123921804,1.02460874,68912.0,68911.0,0.001821]
[1730123922020,1.08940912,68912.0,68911.0,0.001821]
[1730123922258,1.62841428,68912.0,68911.0,0.001821]
[1730123922475,1.37433912,68912.0,68911.0,0.001821]
[1730123922709,0.412433,68902.0,68901.0,0.000821]
[1730123922932,0.85145362,68902.0,68901.0,0.000821]
[1730123923159,0.83801197,68902.0,68901.0,0.000821]
[1730123923403,1.75735934,68902.0,68901.0,0.000821]
[1730123923656,0.8742523,68902.0,68901.0,0.000821]
[1730123923882,0.8762523,68902.0,68901.0,0.000821]
[1730123924088,1.20610933,68902.0,68901.0,0.001821]
[1730123924312,0.8882523,68902.0,68901.0,0.001821]
[1730123924541,0.60117714,68902.0,68901.0,0.001821]
[1730123924749,0.59717714,68902.0,68901.0,0.000821]
[1730123925216,0.57443271,68902.0,68901.0,0.000821]
[1730123925420,0.82850787,68902.0,68901.0,0.000821]
[1730123925843,0.85150787,68902.0,68901.0,0.000821]
[1730123926053,0.85650787,68902.0,68901.0,0.001821]
[1730123926481,0.84250787,68902.0,68901.0,0.001821]
[1730123926728,0.84250787,68902.0,68901.0,0.000821]
[1730123926729,0.20104493,68902.0,68901.0,0.000821]
[1730123927007,0.32343271,68902.0,68901.0,0.000821]
[1730123927236,0.33743271,68902.0,68901.0,0.001821]
[1730123927688,0.4411341,68902.0,68901.0,0.000821]
[1730123927915,0.4411341,68902.0,68893.0,0.21652677]
[1730123927916,0.14545,68894.0,68893.0,0.21652677]
[1730123928183,0.30944971,68894.0,68893.0,0.21652677]
[1730123928430,0.428452,68893.0,68892.0,0.00115092]
[1730123928646,0.85152687,68893.0,68892.0,0.00115092]
[1730123928862,0.85352687,68893.0,68892.0,0.00115092]
[1730123929289,0.85152687,68893.0,68892.0,0.00115092]
[1730123929517,1.00403068,68893.0,68892.0,0.00115092]
[1730123929731,0.85152687,68893.0,68892.0,0.00115092]
[1730123929958,0.86252687,68893.0,68892.0,0.00115092]
[1730123930192,1.05911287,68893.0,68892.0,0.00115092]
[1730123930402,1.07311287,68893.0,68892.0,0.00215092]
[1730123930638,0.86552687,68893.0,68892.0,0.00215092]
[1730123930902,1.00002687,68893.0,68892.0,0.00215092]
[1730123931102,1.01603068,68893.0,68892.0,0.00215092]
[1730123931309,1.21435668,68893.0,68892.0,0.00215092]
[1730123931560,1.01603068,68893.0,68892.0,0.00215092]
[1730123931760,0.87952687,68893.0,68892.0,0.00215092]
[1730123932863,0.58745171,68893.0,68892.0,0.00215092]
[1730123933115,0.33745171,68893.0,68892.0,0.00215092]
[1730123933823,0.32345171,68893.0,68892.0,0.00115092]
[1730123934245,0.33745171,68893.0,68892.0,0.00215092]
[1730123934478,0.33744356,68893.0,68892.0,0.00215092]
[1730123934706,0.57751872,68893.0,68892.0,0.00215092]
[1730123935176,0.59151872,68893.0,68892.0,0.00215092]
[1730123935626,0.57751872,68893.0,68892.0,0.00115092]
[1730123935851,0.56351872,68893.0,68892.0,0.00115092]
[1730123936070,0.57751872,68893.0,68892.0,0.00215092]
[1730123936298,0.59151872,68893.0,68892.0,0.00215092]
[1730123936513,0.30944356,68893.0,68892.0,0.00115092]
[1730123936730,0.30944356,68893.0,68892.0,0.00215092]
[1730123936944,0.32344356,68893.0,68892.0,0.00215092]
[1730123937445,0.30944356,68893.0,68892.0,0.00115092]
[1730123937664,0.30914356,68893.0,68892.0,0.00115092]
[1730123937892,0.32344356,68893.0,68892.0,0.00115092]
[1730123938127,0.29595581,68893.0,68892.0,0.00115092]
[1730123938343,0.30944212,68893.0,68892.0,0.00115092]
[1730123938562,0.32344212,68893.0,68892.0,0.00115092]
[1730123938793,0.30944212,68893.0,68892.0,0.00115092]
[1730123939219,0.33744212,68893.0,68892.0,0.00215092]
[1730123939479,0.32344212,68893.0,68892.0,0.00215092]
[1730123939692,0.30944212,68893.0,68892.0,0.00115092]
[1730123939925,0.32344212,68893.0,68892.0,0.00115092]
[1730123940106,0.33744212,68893.0,68892.0,0.00215092]
[1730123940560,0.32344212,68893.0,68892.0,0.00197492]
[1730123940767,0.32344212,68893.0,68892.0,0.00297492]
[1730123940768,0.33744212,68893.0,68892.0,0.00297492]
[1730123940981,0.35902955,68893.0,68892.0,0.00297492]
[1730123941259,0.71064498,68893.0,68892.0,0.00297492]
[1730123941467,0.60702955,68893.0,68892.0,0.00297492]
[1730123941941,0.60902955,68893.0,68892.0,0.00297492]
[1730123942146,0.65067196,68893.0,68892.0,0.00297492]
[1730123942368,0.65267196,68893.0,68892.0,0.00297492]
[1730123942605,0.43753316,68890.0,68881.0,0.000821]
[1730123942833,0.400475,68882.0,68881.0,0.000821]
[1730123943064,0.87312771,68882.0,68881.0,0.000821]
[1730123943277,1.12920287,68882.0,68881.0,0.000821]
[1730123943492,0.87512771,68882.0,68881.0,0.000821]
[1730123944141,0.88912771,68882.0,68881.0,0.001821]
[1730123944351,1.00455778,68882.0,68881.0,0.001821]
[1730123944560,1.03960778,68882.0,68881.0,0.001821]
[1730123944783,1.374671,68882.0,68881.0,1e-06]
[1730123945014,1.39996903,68882.0,68881.0,1e-06]
[1730123945227,1.13809532,68882.0,68881.0,1e-06]
[1730123945663,1.13609532,68882.0,68881.0,1e-06]
[1730123945871,1.13609532,68882.0,68878.0,0.00082]
[1730123945872,0.185482,68879.0,68878.0,0.00082]
[1730123946081,0.37103581,68879.0,68878.0,0.00082]
[1730123946312,0.44776001,68879.0,68878.0,0.00082]
[1730123946987,0.37103581,68879.0,68878.0,0.00082]
[1730123948288,0.79834181,68879.0,68878.0,0.00082]
[1730123948541,0.79641381,68879.0,68878.0,0.00082]
[1730123948758,0.78241381,68879.0,68878.0,0.00082]
[1730123949020,0.79641381,68879.0,68878.0,0.00082]
[1730123949288,1.17744439,68879.0,68878.0,0.00082]
[1730123949510,3.96921262,68879.0,68878.0,0.00082]
[1730123949722,0.43549,68875.0,68874.0,9e-05]
[1730123949938,2.18913497,68875.0,68874.0,9e-05]
[1730123950177,0.87311897,68875.0,68874.0,9e-05]
[1730123950834,0.87511897,68875.0,68874.0,9e-05]
[1730123951681,0.88911897,68875.0,68874.0,9e-05]
[1730123951906,0.85406897,68875.0,68874.0,9e-05]
[1730123952143,0.90310373,68875.0,68874.0,9e-05]
[1730123952366,1.25367566,68875.0,68874.0,9e-05]
[1730123952594,1.40417947,68875.0,68874.0,9e-05]
[1730123952874,0.183494,68873.0,68860.0,0.21652677]
[1730123953099,1.13275757,68873.0,68860.0,0.21652677]
[1730123953328,1.10528357,68873.0,68860.0,0.21652677]
[1730123953808,1.10528357,68873.0,68850.0,0.0189192]
[1730123953809,0.62103257,68873.0,68850.0,0.0189192]
[1730123954033,0.67760116,68858.0,68852.0,0.21652677]
[1730123954272,0.84157988,68858.0,68852.0,0.21652677]
[1730123954507,0.85157988,68858.0,68852.0,0.21652677]
[1730123954765,0.85157988,68858.0,68850.0,0.0189192]
[1730123954992,0.85357988,68858.0,68850.0,0.0189192]
[1730123955216,0.85356474,68858.0,68850.0,0.0189192]
[1730123955448,0.85156474,68858.0,68850.0,0.0189192]
[1730123955694,0.86556474,68858.0,68850.0,0.0189192]
[1730123956611,0.85356474,68858.0,68850.0,0.0189192]
[1730123957772,1.03689474,68858.0,68850.0,0.0189192]
[1730123958008,1.06489474,68858.0,68850.0,0.0189192]
[1730123958224,1.05089474,68858.0,68857.0,0.00030646]
[1730123958454,0.99581674,68858.0,68857.0,0.00030646]
[1730123958676,0.86756474,68858.0,68857.0,0.00030646]
[1730123958923,0.87956474,68858.0,68857.0,0.00030646]
[1730123959398,0.86555422,68858.0,68857.0,0.00030646]
[1730123959625,0.85714176,68858.0,68857.0,0.00030646]
[1730123959857,0.88514176,68858.0,68857.0,0.00030646]
[1730123960290,0.88714176,68858.0,68857.0,0.00030646]
[1730123960955,0.87314176,68858.0,68857.0,0.00030646]
[1730123961387,0.88714176,68858.0,68857.0,0.00030646]
[1730123961602,0.87314176,68858.0,68857.0,0.00030646]
[1730123962480,0.96869075,68858.0,68857.0,0.00030646]
[1730123962686,0.96869075,68858.0,68857.0,4.6e-07]
[1730123962687,2.11231975,68858.0,68857.0,4.6e-07]
[1730123962898,0.85914176,68858.0,68857.0,4.6e-07]
[1730123963181,0.88714176,68858.0,68857.0,4.6e-07]
[1730123963386,0.87312953,68858.0,68857.0,4.6e-07]
[1730123964509,0.85912953,68858.0,68857.0,4.6e-07]
[1730123964733,0.87312953,68858.0,68857.0,4.6e-07]
[1730123965398,0.85912953,68858.0,68857.0,4.6e-07]
[1730123965630,0.87112953,68858.0,68857.0,0.00082446]
[1730123966054,0.57346683,68858.0,68857.0,0.00082446]
[1730123966292,0.58746683,68858.0,68857.0,0.00082446]
[1730123966529,0.84154199,68858.0,68857.0,0.00082446]
[1730123967694,0.82754199,68858.0,68857.0,0.00082446]
[1730123968105,0.85030079,68858.0,68857.0,0.00082446]
[1730123968360,0.59622563,68858.0,68857.0,0.00082446]
[1730123968782,0.73797064,68858.0,68857.0,0.00082446]
[1730123968987,0.58746683,68858.0,68857.0,0.00082446]
[1730123969195,0.84154199,68858.0,68857.0,0.00082446]
[1730123969402,0.82754199,68858.0,68857.0,0.00082446]
[1730123969587,0.81354199,68858.0,68857.0,0.00082446]
[1730123970016,1.0160458,68858.0,68857.0,0.00082446]
[1730123970248,1.03880519,68858.0,68857.0,0.00082446]
[1730123970669,1.01608842,68858.0,68857.0,0.00082446]
[1730123970887,0.88834443,68858.0,68857.0,0.00082446]
[1730123971100,0.90234443,68858.0,68857.0,0.00082446]
[1730123971564,0.88834443,68858.0,68857.0,0.00082446]
[1730123971800,0.90234443,68858.0,68857.0,0.00082446]
[1730123972076,0.90434443,68858.0,68857.0,0.00082446]
[1730123972289,0.87634443,68858.0,68857.0,0.00082446]
[1730123972496,0.90434443,68858.0,68857.0,0.00082446]
[1730123972727,0.89034443,68858.0,68857.0,0.00082446]
[1730123973155,1.0413686,68858.0,68857.0,0.00082446]
[1730123973379,1.05486593,68858.0,68857.0,0.00082446]
[1730123973593,1.05486593,68858.0,68857.0,4.6e-07]
[1730123974037,1.04086593,68858.0,68857.0,4.6e-07]
[1730123974262,0.65461616,68851.0,68850.0,0.0189192]
[1730123974496,0.86321696,68851.0,68850.0,0.0189192]
[1730123974729,0.77955354,68851.0,68850.0,0.0189192]
[1730123974921,0.80231503,68851.0,68850.0,0.0189192]
[1730123975131,0.78071537,68851.0,68850.0,0.0189192]
[1730123975562,0.94721918,68851.0,68850.0,0.0189192]
[1730123975850,0.96121918,68851.0,68850.0,0.0189192]
[1730123976078,0.83232133,68851.0,68850.0,0.0189192]
[1730123976497,0.83032133,68851.0,68850.0,0.0189192]
[1730123976744,0.84032133,68851.0,68850.0,0.0189192]
[1730123976974,0.84232133,68851.0,68850.0,0.0189192]
[1730123977201,0.95721918,68851.0,68850.0,0.0189192]
[1730123977459,0.78971537,68851.0,68850.0,0.0189192]
[1730123977676,0.61030363,68851.0,68850.0,0.0189192]
[1730123977920,0.1872653,68851.0,68850.0,0.1019192]
[1730123978127,0.29574481,68851.0,68850.0,0.1019192]
[1730123978355,0.30974481,68851.0,68850.0,0.1019192]
[1730123978595,0.30974481,68851.0,68850.0,0.0189192]
[1730123978596,0.32374481,68851.0,68850.0,0.0189192]
[1730123978817,0.32404481,68851.0,68850.0,0.0189192]
[1730123979024,0.33117294,68851.0,68850.0,0.0189192]
[1730123979749,0.35393292,68851.0,68850.0,0.0189192]
[1730123980180,0.54603241,68851.0,68850.0,0.0189192]
[1730123980602,0.40944693,68851.0,68850.0,0.0189192]
[1730123980810,0.43344693,68851.0,68850.0,0.0189192]
[1730123981040,0.42944693,68851.0,68850.0,0.0189192]
[1730123981247,0.40468695,68851.0,68850.0,0.0189192]
[1730123981488,0.39068695,68851.0,68850.0,0.0189192]
[1730123981722,0.37668695,68851.0,68850.0,0.0189192]
[1730123982179,0.39068695,68851.0,68850.0,0.0189192]
[1730123982387,0.40468695,68851.0,68850.0,0.0189192]
[1730123982610,0.40473695,68851.0,68850.0,0.0189192]
[1730123982826,0.39073695,68851.0,68850.0,0.0189192]
[1730123983278,0.40473695,68851.0,68850.0,0.0189192]
[1730123983549,0.39073695,68851.0,68850.0,0.0189192]
[1730123983770,0.35273695,68851.0,68850.0,0.0189192]
[1730123983991,0.36673695,68851.0,68850.0,0.0189192]
[1730123984426,0.35273695,68851.0,68850.0,0.0189192]
[1730123984640,0.36673695,68851.0,68850.0,0.0189192]
[1730123985301,0.38949792,68851.0,68850.0,0.0189192]
[1730123985887,0.38953589,68851.0,68850.0,0.0189192]
[1730123986089,0.34085578,68851.0,68850.0,0.0189192]
[1730123986296,0.35325258,68851.0,68850.0,0.0189192]
[1730123986502,0.39477481,68851.0,68850.0,0.0189192]
[1730123986710,0.40677481,68851.0,68850.0,0.0189192]
[1730123987177,0.40477481,68851.0,68850.0,0.0189192]
[1730123987319,0.39977481,68851.0,68850.0,0.0189192]
[1730123987530,0.40477481,68851.0,68850.0,0.0189192]
[1730123988603,0.40677481,68851.0,68850.0,0.0189192]
[1730123988825,0.40477481,68851.0,68850.0,0.0189192]
[1730123989036,0.145558,68843.0,68842.0,0.000821]
[1730123989260,0.34474181,68843.0,68842.0,0.000821]
[1730123989682,0.29606181,68843.0,68842.0,0.000821]
[1730123989894,0.3447349,68843.0,68842.0,0.000821]
[1730123990319,0.3587349,68843.0,68842.0,0.000821]
[1730123990529,0.3727349,68843.0,68842.0,0.000821]
[1730123991760,0.2271769,68843.0,68842.0,0.000821]
[1730123991996,0.06315279,68843.0,68842.0,0.417081]
[1730123992211,0.06315279,68843.0,68842.0,0.422081]
[1730123992212,0.0415203,68843.0,68842.0,0.422081]
[1730123992671,0.014,68843.0,68842.0,0.431781]
[1730123992875,0.02756893,68843.0,68842.0,0.426781]
[1730123993081,0.19207269,68843.0,68842.0,0.271821]
[1730123993311,0.17807269,68843.0,68842.0,0.271821]
[1730123993489,0.17806963,68843.0,68842.0,0.271821]
[1730123993969,0.30932763,68843.0,68842.0,0.271821]
[1730123994218,0.32484231,68843.0,68842.0,0.271821]
[1730123994416,0.33884231,68843.0,68842.0,0.082121]
[1730123994631,0.33684231,68843.0,68842.0,0.082121]
[1730123994811,0.32284231,68843.0,68842.0,0.082121]
[1730123995296,0.33684231,68843.0,68842.0,0.082121]
[1730123995514,0.19158431,68843.0,68842.0,0.082121]
[1730123995950,0.18606963,68843.0,68842.0,0.59749274]
[1730123996185,0.02205,68843.0,68842.0,0.60249274]
[1730123996411,0.01405,68843.0,68842.0,0.61219274]
[1730123996633,0.02505,68843.0,68842.0,0.61219274]
[1730123997487,0.01405,68843.0,68842.0,0.61219274]
[1730123997722,5e-05,68843.0,68842.0,0.61219274]
[1730123997947,5e-05,68843.0,68842.0,0.441781]
[1730123998155,0.01105,68843.0,68842.0,0.441781]
[1730123998572,5e-05,68843.0,68842.0,0.441781]
[1730123999050,0.00405,68843.0,68842.0,0.441781]
[1730123999265,0.00405,68843.0,68842.0,0.432081]
[1730123999499,0.00405,68843.0,68842.0,0.441781]
[1730123999965,0.00405,68843.0,68842.0,0.61219274]
[1730124000453,0.00405,68843.0,68842.0,0.77267737]
[1730124000887,0.00405,68843.0,68842.0,0.61219274]
[1730124000888,5e-05,68843.0,68842.0,0.61219274]
[1730124001137,5e-05,68843.0,68842.0,0.281821]
[1730124001398,0.00105,68843.0,68842.0,0.281821]
[1730124001612,0.15155381,68843.0,68842.0,0.000821]
[1730124001848,0.29581181,68843.0,68842.0,0.000821]
[1730124002104,0.29581181,68843.0,68842.0,0.350181]
[1730124002105,5e-05,68843.0,68842.0,0.350181]
[1730124002303,0.00105,68843.0,68842.0,0.429181]
[1730124002767,0.00105,68843.0,68842.0,0.427181]
[1730124003202,0.00105,68843.0,68841.0,0.38811674]
[1730124003203,5e-05,68843.0,68841.0,0.38811674]
[1730124003403,5e-05,68843.0,68842.0,0.14526]
[1730124004259,5e-05,68843.0,68842.0,0.14816471]
[1730124004499,0.00405,68843.0,68842.0,0.14526]
[1730124004940,5e-05,68843.0,68842.0,0.14526]
[1730124005371,0.00105,68843.0,68842.0,0.14726]
[1730124005586,0.001698,68851.0,68850.0,0.145243]
[1730124005802,0.001648,68858.0,68857.0,0.147228]
[1730124006027,0.001648,68858.0,68857.0,0.145228]
[1730124006259,0.001648,68872.0,68871.0,0.145198]
[1730124006749,0.001648,68872.0,68868.0,0.72801774]
[1730124006750,0.001648,68872.0,68868.0,0.2672]
[1730124006987,0.001648,68872.0,68864.0,0.17041174]
[1730124006988,0.15050381,68871.0,68864.0,0.17041174]
[1730124007200,0.15050381,68871.0,68860.0,0.29772677]
[1730124007430,0.005,68869.0,68861.0,0.21652677]
[1730124007650,0.005,68867.0,68852.0,0.25991583]
[1730124007913,0.005,68858.0,68853.0,0.21652677]
[1730124008181,0.005,68862.0,68855.0,0.145232]
[1730124008397,0.005,68861.0,68854.0,0.17041174]
[1730124008605,0.005,68861.0,68860.0,0.145222]
[1730124008852,0.15050381,68867.0,68860.0,0.145222]
[1730124008853,0.15050381,68867.0,68860.0,0.00290411]
[1730124009077,0.15050381,68867.0,68866.0,0.145209]
[1730124009318,0.15050381,68867.0,68861.0,0.17041174]
[1730124009979,0.004,68861.0,68859.0,0.290448]
[1730124010214,0.004,68861.0,68860.0,0.145222]
[1730124010490,0.004,68861.0,68860.0,0.31853783]
[1730124010693,0.004,68861.0,68860.0,0.145222]
[1730124010899,5e-05,68880.0,68860.0,0.145222]
[1730124010900,5e-05,68867.0,68866.0,0.145209]
[1730124011105,5e-05,68867.0,68866.0,0.3185245]
[1730124011319,5e-05,68867.0,68866.0,0.31562074]
[1730124012429,0.00205,68867.0,68866.0,0.31562074]
[1730124012679,0.290457,68857.0,68845.0,0.0784]
[1730124012892,0.145239,68852.0,68846.0,0.14525]
[1730124013099,0.145236,68853.0,68847.0,0.145249]
[1730124013328,0.145236,68853.0,68844.0,0.21652677]
[1730124013329,0.005,68854.0,68846.0,0.290503]
[1730124013548,0.005,68854.0,68853.0,0.145236]
[1730124013765,0.005,68854.0,68853.0,0.31564774]
[1730124013982,0.005,68854.0,68853.0,0.145236]
[1730124013983,0.15050381,68854.0,68853.0,0.145236]
[1730124014512,0.001,68853.0,68849.0,0.290488]
[1730124014731,0.15150381,68853.0,68852.0,0.145239]
[1730124014940,0.001,68853.0,68852.0,0.145239]
[1730124015163,0.001,68853.0,68852.0,0.412739]
[1730124015840,0.001,68853.0,68852.0,0.75665455]
[1730124016074,0.21652677,68866.0,68865.0,0.145211]
[1730124016516,0.001648,68872.0,68862.0,0.290432]
[1730124016517,0.001648,68872.0,68871.0,0.31560974]
[1730124017613,0.001648,68872.0,68871.0,0.145198]
[1730124017851,0.002648,68872.0,68871.0,0.145198]
[1730124018583,0.001648,68872.0,68871.0,0.145198]
[1730124019030,0.003648,68872.0,68871.0,0.145198]